Cogmind - Beta 16 @@@ ROGUE MODE // 2025.10.27 @ 17:03:35 Player: Jack Result: Self-destructed Performance ------------- Evolutions (3) 1500 Regions Visited (6) 1200 Robots Destroyed (9) 45 Value Destroyed (135) 135 Prototype IDs (24) 480 Alien Tech Used (0) 0 Bonus (300) 300 TOTAL SCORE: 3660 Bonus ------- Aligned with FarCom 300 Cogmind --------- Core Integrity 700/700 Matter 265/300 Energy 123/125 System Corruption 0% Temperature Cool (6) Movement Flying (32) Location -7/Factory Parts ------- > --- POWER (1) -------- Light Ion Engine > --- PROPULSION (3) --- Flight Unit Flight Unit Cesium-ion Thruster > --- UTILITY (7) ------ Trap Reconfigurator > --- WEAPON (2) ------- Hammer > --- INVENTORY (5) ---- Light Ion Engine Small Laser Light Assault Rifle Light Assault Rifle Peak State ------------ > --- POWER ------------ Light Ion Engine > --- PROPULSION ------- Flight Unit Flight Unit Cesium-ion Thruster > --- UTILITY ---------- Trap Reconfigurator > --- WEAPON ----------- Light Assault Rifle Light Assault Rifle > --- INVENTORY -------- Light Ion Engine Small Laser Hammer [Rating: 17] Favorites ----------- Power Light Ion Engine Engine Light Ion Engine Propulsion Flight Unit Flight Unit Flight Unit Utility Trap Reconfigurator Device Trap Reconfigurator Weapon Medium Laser Energy Gun Medium Laser Ballistic Gun Light Assault Rifle Impact Weapon Hammer Build | -11 -10 -10 -10 -9 -8 -7 ------- Run | Yrd Mat Min Exi Min Mat Fac Slots Evolved 6 | . . . . . 4 2 Power . | . . . . . . . Propulsion 1 | . . . . . 1 . Utility 5 | . . . . . 3 2 Weapon . | . . . . . . . Parts Attached 14 | 3 . 4 1 4 2 . Power 2 | . . 1 . 1 . . Engine 2 | . . 1 . 1 . . Core . | . . . . . . . Reactor . | . . . . . . . Propulsion 4 | . . 2 . 1 1 . Treads . | . . . . . . . Leg . | . . . . . . . Wheel . | . . . . . . . Hover . | . . . . . . . Flight 4 | . . 2 . 1 1 . Utility 2 | . . 1 1 . . . Device 2 | . . 1 1 . . . Storage . | . . . . . . . Processor . | . . . . . . . Hackware . | . . . . . . . Protection . | . . . . . . . Artifact . | . . . . . . . Weapon 6 | 3 . . . 2 1 . Energy Gun 3 | 3 . . . . . . Energy Cannon . | . . . . . . . Ballistic Gun 2 | . . . . 2 . . Ballistic Cannon . | . . . . . . . Launcher . | . . . . . . . Special Weapon . | . . . . . . . Impact Weapon 1 | . . . . . 1 . Slashing Weapon . | . . . . . . . Piercing Weapon . | . . . . . . . Special Melee Weapon . | . . . . . . . Unidentified Prototypes 1 | . . 1 . . . . Parts Lost 1 | . . . . . 1 . Power . | . . . . . . . Propulsion 1 | . . . . . 1 . Utility . | . . . . . . . Weapon . | . . . . . . . Highest Loss Streak 1 | . . . . . 1 . To Critical Strikes . | . . . . . . . Average Backups 1 | . . 1 1 3 3 4 Power . | . . . . . 1 1 Propulsion . | . . . . . . . Utility . | . . . . . . . Weapon 1 | . . 1 1 1 2 3 Tool/Special . | . . . . . . . Unused Backups . | . . . . . . . Power . | . . . . . . . Propulsion . | . . . . . . . Utility . | . . . . . . . Weapon . | . . . . . . . Tool/Special . | . . . . . . . Average Slot Usage (%) 56 | . 28 43 77 85 60 46 Engine 7 | . . 3 14 14 9 7 Flight 17 | . . 9 28 28 26 23 Device 5 | . . 1 6 14 9 7 Energy Gun 21 | . 28 28 28 12 . . Ballistic Gun 2 | . . . . 15 14 . Peak Build Rating 17 | 2 2 16 14 14 17 16 Average Rating 8 | 1 2 4 9 14 15 16 On Entrance 7 | . 2 2 5 14 14 16 Avg Prop Armor Cover (%) . | . . . . . . . Naked Turns . | . . . . . . . Heaviest Build 7 | 4 3 6 7 7 6 6 Greatest Support 13 | 3 3 8 8 8 13 13 Greatest Overweight (x) 1 | 1 . . . . . . Average Overweight (x) . | . . . . . . . Largest Inventory Capacity 5 | 5 5 5 5 5 5 5 Average Capacity 5 | 5 5 5 5 5 5 5 Most Carried 4 | . 1 1 1 4 4 4 Average Carried 1 | . . 1 1 3 3 4 Final Capacity 5 | 5 5 5 5 5 5 5 Final Carried 4 | . 1 1 1 4 4 4 Class Distribution -------------------- 73% | Mutant 16% | Scavenger-Mutant 10% | Sprinter Dominant Class ---------------- Mutant | -10/Materials Mutant | -10/Mines Mutant | -10/Exiles Scavenger-Mutant | -9/Mines Scavenger-Mutant | -8/Materials Sprinter | -7/Factory Resources | -11 -10 -10 -10 -9 -8 -7 ----------- Run | Yrd Mat Min Exi Min Mat Fac Matter Collected 340 | 95 87 98 . 60 . . Remotely . | . . . . . . . Salvage Created 210 | . 87 54 . 69 . . Parts 13 | . 5 4 . 4 . . Haulers Intercepted . | . . . . . . . Recyclers Shooed . | . . . . . . . Parts Field Recycled . | . . . . . . . Retrieved Matter . | . . . . . . . Parts Self-Destructed . | . . . . . . . Prevented . | . . . . . . . Parts Restored . | . . . . . . . Kills | -11 -10 -10 -10 -9 -8 -7 ------- Run | Yrd Mat Min Exi Min Mat Fac Combat Hostiles Destroyed 8 | . 2 2 . 4 . . Guns 8 | . 2 2 . 4 . . Classes Destroyed 3 | . 1 2 . . . . Tunneler 1 | . . 1 . . . . Swarmer 6 | . . 2 . 4 . . Grunt 2 | . 2 . . . . . Best Kill Streak 4 | . 2 2 . 4 . . Combat Bots Only 4 | . 2 2 . 4 . . Max Kills in Single Turn 2 | . 1 1 . 2 . . Gunslinging 1 | . . . . 1 . . Exploded . | . . . . . . . Melee . | . . . . . . . Uniques/NPCs Destroyed . | . . . . . . . Combat | -11 -10 -10 -10 -9 -8 -7 -------- Run | Yrd Mat Min Exi Min Mat Fac Hostile Shots Fired 55 | . 10 21 . 12 12 . Missed 22 | . 5 7 . 4 6 . Hits 33 | . 5 14 . 8 6 . Projectile 33 | . 5 14 . 8 6 . Damage Taken 306 | . 57 105 . 56 88 . Core 136 | . 33 47 . 14 42 . Absorbed by Shields . | . . . . . . . Core Remaining (%) 84 | 100 . . . 62 92 . Volleys Fired 29 | . 5 15 . 4 5 . Largest 2 | . 2 2 . 2 2 . Hottest 90 | . 90 90 . 90 40 . Shots Fired 58 | . 10 30 . 8 10 . Gun 58 | . 10 30 . 8 10 . Cannon . | . . . . . . . Launcher . | . . . . . . . Special . | . . . . . . . Kinetic 10 | . . . . . 10 . Thermal 48 | . 10 30 . 8 . . Explosive . | . . . . . . . Electromagnetic . | . . . . . . . Robot Hit Streak 8 | . 5 8 . 3 5 . Robot Miss Streak 4 | . 1 4 . 1 3 . Penetration Max . | . . . . . . . Secondary Targets 1 | . . . . 1 . . Max Gunslinging Chain 1 | . . . . 1 . . Shots Hit Robots 31 | . 7 12 . 6 6 . Core Hits 12 | . 4 3 . 4 1 . Critical Kills . | . . . . . . . Critical Parts Destroyed . | . . . . . . . Critical Strikes 1 | . 1 . . . . . Burn 1 | . 1 . . . . . Melee Attacks 6 | . . . . . 6 . Impact 6 | . . . . . 6 . Slashing . | . . . . . . . Piercing . | . . . . . . . Sneak Attacks . | . . . . . . . Combat Hostiles . | . . . . . . . Follow-up Attacks . | . . . . . . . Damage Inflicted 349 | . 85 144 . 70 50 . Guns 349 | . 85 144 . 70 50 . Cannons . | . . . . . . . Explosions . | . . . . . . . Melee . | . . . . . . . Ramming . | . . . . . . . Kinetic 50 | . . . . . 50 . Thermal 299 | . 85 144 . 70 . . Explosive . | . . . . . . . Electromagnetic . | . . . . . . . Impact . | . . . . . . . Slashing . | . . . . . . . Piercing . | . . . . . . . Highest Corruption . | . . . . . . . Average Corruption . | . . . . . . . Corruption Purged . | . . . . . . . Corruption Blocked . | . . . . . . . Overload Shots . | . . . . . . . Overflow Damage . | . . . . . . . Projectiles . | . . . . . . . Explosions . | . . . . . . . Melee . | . . . . . . . Knockbacks . | . . . . . . . Impact . | . . . . . . . Kinetic . | . . . . . . . Secondary . | . . . . . . . Self-Inflicted Damage . | . . . . . . . Shots . | . . . . . . . Rammed . | . . . . . . . Targets Rammed . | . . . . . . . Kicked . | . . . . . . . Crushed . | . . . . . . . Highest Temperature 288 | . 93 288 . 144 8 . Average Temperature 90 | . 49 109 . 74 5 . Received Heat Transfer 51 | . 33 . . . 18 . Effects 1 | . . 1 . . . . Energy Bleed 1 | . . 1 . . . . Siege Activations . | . . . . . . . Martial Activations . | . . . . . . . Shielding Activations . | . . . . . . . Robots Disrupted . | . . . . . . . Combat Hostiles . | . . . . . . . Robots Corrupted . | . . . . . . . Combat Hostiles . | . . . . . . . Parts Fried . | . . . . . . . Impact Corruptions . | . . . . . . . Robots Melted . | . . . . . . . Combat Hostiles . | . . . . . . . Parts Melted 2 | . 1 . . 1 . . Heat Transferred 891 | . 309 408 . 174 . . Parts Sabotaged . | . . . . . . . Parts Stolen . | . . . . . . . Parts Stripped . | . . . . . . . Power Chain Reactions . | . . . . . . . Alert | -11 -10 -10 -10 -9 -8 -7 ------- Run | Yrd Mat Min Exi Min Mat Fac Maximum Alert Level . | . . . . . . . Low Security (%) 100 | 100 100 100 . 100 100 100 Level 1 . | . . . . . . . Level 2 . | . . . . . . . Level 3 . | . . . . . . . Level 4 . | . . . . . . . Level 5 . | . . . . . . . High Security . | . . . . . . . Max Security . | . . . . . . . Peak Influence 90 | . 50 58 . 90 23 7 Initial 23 | . . 14 . . 23 7 Average 19 | . 25 15 . 69 9 1 Influence Increases 261 | . 57 88 . 90 26 . Destroy 0b10 Robot/C 160 | . 40 40 . 80 . . Destroy 0b10 Robot/NC 5 | . . 5 . . . . Destroy Leader 30 | . 10 10 . 10 . . Allied During Kill 3 | . . 3 . . . . Successful Hack 15 | . 7 . . . 8 . Destroy Structure 3 | . . . . . 3 . Partial Spotted 15 | . . . . . 15 . Lose Combat Pursuer 30 | . . 30 . . . . Influence Decreases 261 | . 20 102 23 30 70 16 Entered New Map 92 | . . 23 23 . 37 9 Time Decay 159 | . 20 79 . 30 23 7 Lost Part 10 | . . . . . 10 . Squads Dispatched 4 | . 2 . . . 2 . Investigation 1 | . . . . . 1 . Extermination . | . . . . . . . Reinforcement 3 | . 2 . . . 1 . Assault . | . . . . . . . Garrison . | . . . . . . . Intercept . | . . . . . . . Searches Triggered . | . . . . . . . Construction Impeded . | . . . . . . . Haulers Reinforced . | . . . . . . . Active Scanning Responses . | . . . . . . . Cargo Convoy Interrupts . | . . . . . . . Stealth | -11 -10 -10 -10 -9 -8 -7 --------- Run | Yrd Mat Min Exi Min Mat Fac Distress Signals 1 | . 1 . . . . . Communications Jammed . | . . . . . . . Distress Signals . | . . . . . . . Times Spotted 24 | . 8 6 . 4 6 . Peak Tracking Total 8 | . 5 2 . 4 8 . Tactical Retreats 2 | . . 2 . . . . Traps | -11 -10 -10 -10 -9 -8 -7 ------- Run | Yrd Mat Min Exi Min Mat Fac Traps Triggered . | . . . . . . . Indirectly . | . . . . . . . Trap Hack Attempts . | . . . . . . . Triggered . | . . . . . . . Disarmed . | . . . . . . . Reprogrammed . | . . . . . . . Reused . | . . . . . . . Traps Extracted . | . . . . . . . Installed . | . . . . . . . Triggered . | . . . . . . . Machines | -11 -10 -10 -10 -9 -8 -7 ---------- Run | Yrd Mat Min Exi Min Mat Fac Machines Disabled . | . . . . . . . Max in Single Turn . | . . . . . . . Machines Repaired . | . . . . . . . Machines Dismantled . | . . . . . . . Machines Sabotaged . | . . . . . . . Overloaded Fab Kills . | . . . . . . . Hacking | -11 -10 -10 -10 -9 -8 -7 --------- Run | Yrd Mat Min Exi Min Mat Fac Machines Accessed 5 | . 1 1 1 . 2 . Terminals 3 | . 1 . . . 2 . Fabricators . | . . . . . . . Repair Stations . | . . . . . . . Recycling Units . | . . . . . . . Scanalyzers . | . . . . . . . Garrison Access . | . . . . . . . Total Hacks 9 | . 2 1 1 . 5 . Successful 5 | . 1 1 1 . 2 . Failed 4 | . 1 . . . 3 . Catastrophic . | . . . . . . . Database Lockouts . | . . . . . . . Manual 7 | . 2 . 1 . 4 . Terminals 7 | . 2 . . . 5 . Fabricators . | . . . . . . . Repair Stations . | . . . . . . . Recycling Units . | . . . . . . . Scanalyzers . | . . . . . . . Garrison Access . | . . . . . . . Terminal Hacks 5 | . 1 1 1 . 2 . Part Schematic 1 | . . . . . 1 . Open Door 1 | . . 1 . . . . Branch Access Points 1 | . 1 . . . . . Terminal Index 1 | . . . . . 1 . Proto ID Catalog 1 | . . . 1 . . . Fabricator Hacks . | . . . . . . . Repair Station Hacks . | . . . . . . . Recycling Unit Hacks . | . . . . . . . Scanalyzer . | . . . . . . . Garrison Access Hacks . | . . . . . . . Unauthorized Hacks . | . . . . . . . Terminals . | . . . . . . . Fabricators . | . . . . . . . Repair Stations . | . . . . . . . Recycling Units . | . . . . . . . Scanalyzers . | . . . . . . . Garrison Access . | . . . . . . . Data Cores Recovered . | . . . . . . . Used . | . . . . . . . Hacking Detections 2 | . . . . . 2 . Full Trace Events 1 | . . . . . 1 . Feedback Events . | . . . . . . . Feedback Blocked . | . . . . . . . Robot Schematics Acquired . | . . . . . . . Robots Built . | . . . . . . . Authchips . | . . . . . . . Time . | . . . . . . . Total Robot Build Rating . | . . . . . . . Part Schematics Acquired 1 | . . . . . 1 . Parts Built . | . . . . . . . Authchips . | . . . . . . . Time . | . . . . . . . Total Part Build Rating . | . . . . . . . Part Studies Acquired . | . . . . . . . Parts Repaired . | . . . . . . . Time . | . . . . . . . Parts Recycled . | . . . . . . . Recycled Matter . | . . . . . . . Retrieved Matter . | . . . . . . . Retrieved Components . | . . . . . . . Parts Scanalyzed . | . . . . . . . Part Schematics Acquired . | . . . . . . . Parts Damaged . | . . . . . . . Bothacking | -11 -10 -10 -10 -9 -8 -7 ------------ Run | Yrd Mat Min Exi Min Mat Fac Used RIF Installer . | . . . . . . . Robots Hacked . | . . . . . . . Non-combat . | . . . . . . . Combat . | . . . . . . . Robot Hacks Applied . | . . . . . . . Relay Couplers Released . | . . . . . . . Fabnet Peak Effective % . | . . . . . . . Robots Rewired . | . . . . . . . Allies Hacked . | . . . . . . . Hacks Repelled . | . . . . . . . Allies | -11 -10 -10 -10 -9 -8 -7 -------- Run | Yrd Mat Min Exi Min Mat Fac Total Allies 1 | . . 1 . . . . Largest Group 1 | . . 1 . . . . Highest-Rated Group 31 | . . 31 . . . . Highest-Rated Ally 31 | . . 31 . . . . Total Orders 1 | . . 1 . . . . EXPLORE 1 | . . 1 . . . . Ally Attacks . | . . . . . . . Total Damage . | . . . . . . . Kills . | . . . . . . . Allies Corrupted . | . . . . . . . Allies Melted . | . . . . . . . Intel | -11 -10 -10 -10 -9 -8 -7 ------- Run | Yrd Mat Min Exi Min Mat Fac Active Infowar (turns) . | . . . . . . . Robot Analysis Total . | . . . . . . . Derelict Logs Recovered 4 | . . 2 . 2 . . Drone Launches 16 | . . 16 . . . . Drone Recoveries . | . . . . . . . Exploration | -11 -10 -10 -10 -9 -8 -7 ------------- Run | Yrd Mat Min Exi Min Mat Fac Turns Passed 850 | 31 74 312 198 73 90 72 Spaces Moved 1595 | 43 116 380 530 144 164 218 Core 425 | 43 116 266 . . . . Treads . | . . . . . . . Legs . | . . . . . . . Wheels . | . . . . . . . Hover . | . . . . . . . Flight 1170 | . . 114 530 144 164 218 Fastest Speed 32 | 50 50 37 37 37 32 32 Average Speed 39 | 56 50 46 37 37 34 32 Slowest Speed 100 | 100 50 50 37 37 37 32 Overloaded Moves . | . . . . . . . Propulsion Burnouts . | . . . . . . . Robots Hopped 3 | . . 1 . 1 1 . Potential Cave-ins . | . . . . . . . Cave-ins Triggered . | . . . . . . . Exploration Rate (%) 38 | 3 32 87 89 37 19 3 Regions Visited 6 Branch Regions 3 Pre-discovered Areas 2 | . . 1 . 1 . . Known Exits Taken 2 | . 1 . . . 1 . Unknown Exits Taken 4 | 1 . 1 1 1 . . Scrap Searched 2 | . . 1 . 1 . . Spaces Dug 4 | . . . . . 4 . Terrain Destroyed 4 | . . . . . 4 . Melee 4 | . . . . . 4 . Projectile . | . . . . . . . AOE . | . . . . . . . Terrain Rammed . | . . . . . . . Walls Destroyed . | . . . . . . . Machines Disabled . | . . . . . . . Actions | -11 -10 -10 -10 -9 -8 -7 --------- Run | Yrd Mat Min Exi Min Mat Fac Total 1728 | 46 121 483 530 151 177 220 Wait 87 | . . 85 . . . 2 Move 1583 | 42 115 377 529 141 161 218 Hop 3 | . . 1 . 1 1 . Pick Up 1 | . 1 . . . . . Fast Attach 10 | 4 . 4 1 . 1 . Attach 1 | . . . . . 1 . Detach 1 | . . . . . 1 . Swap 6 | . . . . 5 1 . Drop 1 | . . 1 . . . . Fire 29 | . 5 15 . 4 5 . Melee 6 | . . . . . 6 . Ram . | . . . . . . . Kick . | . . . . . . . Crush . | . . . . . . . Escape Stasis . | . . . . . . . Rewire . | . . . . . . . Trap . | . . . . . . . Miscellaneous . | . . . . . . . Route ------- -11/Scrapyard -10/Materials (discovered 3 exits: [*Mat x2] / *Min) -10/Mines (discovered 3 exits: [*Mat] / *Exi / [*Sub]) -10/Exiles -9/Mines -8/Materials -7/Factory History --------- Turn | Location | Event 4 | -11/Scrapyard | Discovered new exit (range 16) 17 | -11/Scrapyard | Released all parts (2) 32 | -11/Scrapyard | Entered Materials 81 | -10/Materials | Identified exit to Mines 90 | -10/Materials | Discovered new exit (range 12) 99 | -10/Materials | Discovered new exit (range 15) 106 | -10/Materials | Entered Mines 120 | -10/Mines | Assembled infested the area 125 | -10/Mines | Assisted by a Guerilla fighting off Assembled 156 | -10/Mines | Received a Mining Laser from a helpful Derelict 186 | -10/Mines | Found the Drone Emporium 187 | -10/Mines | Learned Materials stockpile data 204 | -10/Mines | Found Prototype Device 204 | -10/Mines | Identified Decoy Drone Bay 233 | -10/Mines | Discovered new exit (range 39) 263 | -10/Mines | Lost 6 allies 270 | -10/Mines | Found a damaged Exp. Sensor Array with a note attached 314 | -10/Mines | Build established: Mutant 337 | -10/Mines | Discovered new exit (range 7) 344 | -10/Mines | Received a Rocket Launcher from a helpful Derelict 376 | -10/Mines | Learned location of Recycling (-9) 380 | -10/Mines | Deemed a non-threat by the Exiles lab entrance 380 | -10/Mines | Discovered new exit (range 5) 418 | -10/Mines | Entered Exiles 428 | -10/Exiles | Met 8R-AWN 433 | -10/Exiles | Met EX-HEX 444 | -10/Exiles | Met EX-BIN 457 | -10/Exiles | Met EX-DEC 471 | -10/Exiles | Visited The Gauntlet 497 | -10/Exiles | Aligned with FarCom system 497 | -10/Exiles | Given EX-Vault access code 506 | -10/Exiles | Opened EX-Vault 517 | -10/Exiles | Found Trap Reconfigurator 525 | -10/Exiles | Warned to stay clear of 0b10 Research branches 612 | -10/Exiles | Discovered new exit (range 12) 616 | -10/Exiles | Left Exiles lab with Trap Reconfigurator 616 | -10/Exiles | Entered Mines 686 | -9/Mines | Discovered new exit (range 6) 689 | -9/Mines | Entered Materials 689 | -8/Materials | Evolved 4 slots: Propulsion x1, Utility x3 690 | -8/Materials | Identified exit to Factory 779 | -8/Materials | Entered Factory 779 | -7/Factory | Evolved 2 slots: Utility x2 851 | -7/Factory | Self-destructed Last Messages --------------- >>Index(Terminals) Found 12 terminals. Downloaded coordinate data. ALERT: Suspicious activity at Terminal M010. Dispatching Investigation squad. K-01 Serf collects debris. Connecting with Terminal... >>Schematic(Hacking Suite) Downloading schematic... Hacking Suite Rating: 3 Schematic downloaded. K-01 Serf collects debris. Flight Unit destroyed. Acquired Cesium-ion Thruster. Terminal disabled. ALERT: Hostiles spotted, dispatching reinforcements to Terminal M005. PARAMETERS=UTILITY+2 LOCATION=FACTORY GOAL=ESCAPE Receiving FarCom transmissions... Map ----- +----------------------------------------------------+ | ????????????????????????????? | | ????????????????????????????? | | ????????????????????????????? | | ????????????????????????????? | | ????????????????????????????? | | ????????????????????????????? | | ????????????????????????????? | | ????????????????????????????? | | ????????????????????????????? | | ????????????????????????????? | | ????????????????????????????? | | ????????????????????????????? | | ????????????????????????????? | | ????????????????????????????? | | ????????????????????????????? | | ?????????##########?????????? | | ?????????# #?????????? | | ?????????# """ "#?????????? | | ?????????# """ ""#?????????? | | ?????????#! """ ""#?????????? | | ?????????# ""#?????????? | | ?????????# """ ""#?????###?? | | ?????????# """ T"#????? ?? | | ?????????# """ ""#?????" "?? | | ??######## ""#????"" "?? | | ??# @ + """ ""#???""" ""? | | ??# ###### """ ""#???""" """ | | ??# #????# """ "#?? | | ###+###### ## """" """ | | # # """ ## """" """ | | # """ # """ ## """" """ | | # """ # """ ## """" """ | | # """ # ## | | # # ## | | # """ ! #+##+############+## | | # """ # | | # """ # | | # + | | # """ # | | # """ # | | # """ ##### ### ### | | # #???# #?# #?# | | # """ #???#+#?# #?###### | | # """ #?? #?# #??????? | | # """ # " " #?# #??????? | | # # " " #? ??????? | | # [ # " " # ?????? | | ######+### " " # #????? | | ?????# #?# " " + " ????? | | ?????# #?# " " # ##???? | +----------------------------------------------------+ Best States ------------- Heat Dissipation 34 Energy Generation 10 Energy Capacity 125 Matter Stores 300 Matter Capacity 300 Sight Range 16 Terrain Scan Density 10 Evasion (%) 63 Item Schematics ----------------- Hacking Suite | -8/Materials | Hacked Robot Schematics ------------------ None Fabricated ------------ Nothing Repaired ---------- Nothing Studied --------- None Alien Tech Used ----------------- None Achievements -------------- None Challenges ------------ None Game ------ Seed MeleeAluminumInterpreter Manual? 0 Play Time 00:11:59 Cumulative 349.6 hours Start 2025.10.27 @ 16:51:31 End 2025.10.27 @ 17:03:35 Sessions 1 Manual Loads 0 Difficulty Rogue Special Mode None Game No. 328 Rogue 139 Adventurer 177 Explorer 12 Win Type - Total 72 Types 22/2/17/2/12/0/5/6/0/6 Lore% 59 Gallery% 57 Achievement% 50 Wizard Run 0 Options --------- Layout 0 ASCII 0 Keyboard 0 Movement Numpad Keybinds 0 Fullscreen 2 Font 12/Smallcaps Map View 83x54 Zoom Use 0% Tactical HUD 0 Map Filters NONE Filters NONE Steam 1 RUN: f7c3e17c-3f0a-4dbb-87b5-eabf5a2d03ff